fUSD/lending_fUSD_20250606
["ID","MTS","AMOUNT","RATE_DAILY","PERIOD"]
[364817361,1749252640121,-1000.0,0.00024088,2]
[364817363,1749252640130,-1000.0,0.00024088,2]
[364817365,1749252640140,-1000.0,0.00024088,2]
[364817367,1749252640149,-1000.0,0.00024088,2]
[364817369,1749252640158,-1000.0,0.00024088,2]
[364817371,1749252640168,-1000.0,0.00024088,2]
[364817373,1749252640177,-10476.16719659,0.00024202,2]
[364817375,1749252640187,-765.12450893,0.000244,11]
[364817377,1749252640196,-765.12450891,0.000244,11]
[364817379,1749252640206,-765.12450891,0.000244,11]
[364817381,1749252640215,-765.12450891,0.000244,11]
[364817383,1749252640224,-765.12450891,0.000244,11]
[364817385,1749252640234,-765.12450891,0.000244,11]
[364817387,1749252640243,-765.12450891,0.000244,11]
[364817389,1749252640253,-765.12450891,0.000244,11]
[364817391,1749252640262,-163.87,0.00024514,2]
[364817393,1749252640271,-500.0,0.00024635,2]
[364817395,1749252640281,-500.0,0.00024658,2]
[364817397,1749252640290,-426.53325925,0.00024658,2]
[364817399,1749252640299,-500.0,0.00024658,2]
[364817401,1749252640309,-500.0,0.00024658,2]
[364817403,1749252640319,-500.0,0.00024658,2]
[364817405,1749252640329,-500.0,0.00024658,2]
[364817407,1749252640338,-500.0,0.00024658,2]
[364817409,1749252640348,-500.0,0.00024658,2]
[364817411,1749252640358,-500.0,0.00024658,2]
[364817413,1749252640367,-525.00461498,0.00024658,2]
[364817415,1749252640378,-499.99999999,0.00024658,2]
[364817417,1749252640387,-500.0,0.00024658,2]
[364817419,1749252640397,-500.0,0.00024658,2]
[364817421,1749252640406,-500.0,0.00024658,2]
[364817423,1749252640416,-500.0,0.00024658,2]
[364817425,1749252640425,-177.6405,0.00024658,2]
[364817427,1749252640435,-500.0,0.00024658,2]
[364817430,1749252640444,-207.20952819,0.000247,2]
[364817432,1749252640454,-1416.01500144,0.000247,2]
[364817434,1749252640465,-288.47319772,0.000247,2]
[364817436,1749252640476,-547.3783488,0.000247,2]
[364817438,1749252640486,-10476.16719659,0.0002474,2]
[364817440,1749252640495,-500.0,0.00024773,2]
[364817442,1749252640505,-157.96100869,0.00024784,2]
[364817444,1749252640515,-163.16522892,0.00024788,2]
[364817446,1749252640524,-602.98178778,0.0002479,2]
[364817448,1749252640535,-16931.5732787,0.00024799,7]
[364817450,1749252640546,-3429153.25010355,0.000248,7]
[364817452,1749252640556,-332216.949978,0.000248,2]
[364817454,1749252640565,-500.0,0.0002484,2]
[364817456,1749252640575,-500.0,0.0002484,2]
[364817458,1749252640585,-765.12450891,0.00024866,12]
[364817460,1749252640595,-1853.76413698,0.00024888,2]
[364817462,1749252640604,-284022.024915,0.000249,2]
[364817464,1749252640614,-1883.25863682,0.00025,7]
[364817466,1749252640624,-262.79,0.00025242,2]
[364817468,1749252640634,-769.88644533,0.00025321,2]
[364817470,1749252640644,-182.47,0.00025411,2]
[364817472,1749252640653,-250.0,0.00025411,2]
[364817474,1749252640663,-150.0,0.00025449,2]
[364817476,1749252640673,-150.0,0.00025452,2]
[364817478,1749252640684,-4000.0,0.00025462,4]
[364817480,1749252640694,-150.0,0.00025484,2]
[364817482,1749252640704,-150.0,0.00025485,2]
[364817484,1749252640714,-765.12450891,0.00025486,13]
[364817486,1749252640723,-150.0,0.00025563,2]
[364817488,1749252640734,-1853.76413698,0.00025689,2]
[364817490,1749252640743,-158.13,0.00025701,2]
[364817492,1749252640752,-170.25,0.00025702,2]
[364817494,1749252640761,-150.0,0.00025735,2]
[364817496,1749252640771,-1000.0,0.00025748,2]
[364817498,1749252640781,-999.99,0.00025786,2]
[364817500,1749252640791,-830.06,0.00025786,2]
[364817502,1749252640800,-407.62,0.00025786,2]
[364817504,1749252640810,-499.99,0.00025786,2]
[364817506,1749252640819,-299.99,0.00025786,12]
[364817508,1749252640828,-9999.99,0.00025786,2]
[364817510,1749252640837,-3677.61,0.00025786,2]
[364817512,1749252640846,-9999.99,0.00025786,2]
[364817514,1749252640856,-9999.99,0.00025786,2]
[364817516,1749252640865,-3866.03,0.00025786,5]
[364817518,1749252640874,-150.99,0.00025786,2]
[364817520,1749252640884,-150.0,0.00025834,2]
[364817522,1749252640893,-4000.0,0.00025916,4]
[364817524,1749252640902,-157.96100869,0.00026005,2]
[364817526,1749252640912,-150.0,0.00026096,2]
[364817528,1749252640921,-765.12450891,0.00026107,14]
[364817530,1749252640930,-23900.0,0.00026191,2]
[364817532,1749252640939,-150.0,0.00026204,2]
[364817534,1749252640949,-150.0,0.00026205,2]
[364817536,1749252640958,-932.93,0.00026228,2]
[364817538,1749252640967,-206.0,0.00026256,2]
[364817540,1749252640977,-150.0,0.00026283,2]
[364817542,1749252640986,-163.68,0.00026319,2]
[364817544,1749252640995,-150.0,0.00026357,2]
[364817546,1749252641004,-4000.0,0.0002637,4]
[364817548,1749252641014,-163.87,0.00026383,2]
[364817550,1749252641024,-1000.0,0.00026392,2]
[364817552,1749252641034,-1000.0,0.00026392,2]
[364817554,1749252641043,-1000.0,0.00026392,2]
[364817556,1749252641052,-1000.0,0.00026392,2]
[364817565,1749252641128,-1000.0,0.00026392,2]
[364817567,1749252641137,-1000.0,0.00026392,2]
[364817569,1749252641147,-1000.0,0.00026392,2]
[364817571,1749252641156,-796.33,0.00026441,2]
[364817573,1749252641165,-1853.76413698,0.00026489,2]
[364817575,1749252641174,-150.0,0.00026531,2]
[364817577,1749252641184,-150.0,0.00026578,2]
[364817579,1749252641193,-1100.0,0.000266,9]
[364817581,1749252641202,-3000.0,0.000266,9]
[364817583,1749252641211,-231.24,0.00026676,2]
[364817585,1749252641220,-1500.0,0.000267,9]
[364817587,1749252641229,-4000.0,0.000267,9]
[364817589,1749252641238,-765.12450891,0.00026728,15]
[364817591,1749252641247,-1800.0,0.000268,9]
[364817593,1749252641257,-5000.0,0.000268,9]
[364817595,1749252641266,-182.47,0.00026823,2]
[364817597,1749252641275,-4000.0,0.00026823,4]
[364817599,1749252641284,-151.0,0.00026833,2]
[364817601,1749252641293,-1000.0,0.00026833,2]
[364817603,1749252641302,-623.82080352,0.00026833,2]
[364817605,1749252641312,-151.0,0.00026833,2]
[364817607,1749252641321,-500.0,0.00026833,2]
[364817609,1749252641331,-186.32160522,0.00026833,2]
[364817611,1749252641340,-500.0,0.00026833,2]
[364817613,1749252641349,-283.33,0.00026833,2]
[364817615,1749252641359,-207.4,0.00026833,2]
[364817617,1749252641368,-300.0,0.00026833,2]
[364817619,1749252641377,-150.0,0.00026837,2]
[364817621,1749252641386,-300.0,0.000269,9]
[364817623,1749252641396,-1000.0,0.000269,9]
[364817625,1749252641406,-30000.0,0.00026981,2]
[364817627,1749252641416,-326.0,0.00027,7]
[364817629,1749252641425,-965.73903659,0.00027,2]
[364817631,1749252641434,-200.0,0.00027,2]
[364817633,1749252641444,-7248.94,0.00027086,2]
[364817635,1749252641453,-150.0,0.0002709,2]
[364817637,1749252641463,-2000.0,0.000271,2]
[364817639,1749252641475,-150.0,0.000271,2]
[364817641,1749252641484,-153.0,0.00027123,2]
[364817642,1749252641494,-153.0,0.00027123,2]
[364817644,1749252641503,-153.0,0.00027123,2]
[364817647,1749252641513,-153.0,0.00027123,2]
[364817649,1749252641522,-153.0,0.00027123,2]
[364817650,1749252641532,-153.0,0.00027123,2]
[364817651,1749252641541,-153.0,0.00027123,2]
[364817652,1749252641552,-153.0,0.00027123,2]
[364817653,1749252641562,-153.0,0.00027123,2]
[364817654,1749252641571,-153.0,0.00027123,2]
[364817655,1749252641581,-150.0,0.00027175,2]
[364817656,1749252641591,-500.0,0.0002719,2]
[364817657,1749252641600,-36058.946,0.0002719,2]
[364817658,1749252641609,-1000.0,0.0002719,2]
[364817659,1749252641619,-157.96100869,0.00027226,2]
[364817660,1749252641628,-7248.91,0.0002727,2]
[364817662,1749252641637,-161.4,0.00027273,2]
[364817664,1749252641646,-4000.0,0.00027277,4]
[364817665,1749252641657,-733.0955517,0.00027285,2]
[364817667,1749252641666,-5000.0,0.00027286,2]
[364817669,1749252641675,-150.0,0.00027289,2]
[364817671,1749252641685,-1853.76413698,0.00027289,2]
[364817673,1749252641694,-8387.13209883,0.0002729,2]
[364817681,1749252641755,-1489.13500001,0.0002729,2]
[364818195,1749252658661,734.77254682,0.0003561,120]
[364818196,1749252667936,310.348967,7.945e-05,2]
[364818237,1749252750326,150.0,0.000195,5]
[364818239,1749252801586,500.0,0.000356,120]
[364818240,1749252814809,500.0,0.000356,120]
[364818241,1749252828728,500.0,0.000356,120]
[364818243,1749252842679,500.0,0.000356,120]
[364818244,1749252856019,500.0,0.000356,120]
[364818245,1749252860337,240.23,0.00013699,2]
[364818247,1749252868926,500.0,0.000356,120]
[364818248,1749252881980,500.0,0.000356,120]
[364818249,1749252896040,500.0,0.000356,120]
[364818250,1749252910373,566.0,0.000356,120]
[364818251,1749253202236,2996.99,0.00035616,120]
[364818256,1749253282494,250.0,0.00019,2]
[364818261,1749253355257,200.0,0.00035616,120]
[364818284,1749253831924,-240.23,0.00020187,2]
[364818285,1749253831934,-300.0,0.00021,2]
[364818286,1749253831943,-800.0,0.0002197,4]
[364818287,1749253831953,-250.0,0.0002197,2]
[364818288,1749253831962,-250.0,0.0002197,2]
[364818289,1749253831972,-500.0,0.00023123,2]
[364818290,1749253831981,-150.0,0.00023858,2]
[364818291,1749253831990,-1018.41,0.00023867,2]
[364818292,1749253832000,-152.0,0.00023894,3]
[364818293,1749253832010,-199.58,0.00024539,2]
[364818294,1749253832019,-1000.0,0.00024658,2]
[364818295,1749253832028,-150.0,0.00024872,2]
[364818296,1749253832037,-250.0,0.00024943,2]
[364818297,1749253832047,-150.0,0.00024953,2]
[364818298,1749253832057,-300.0,0.00024965,2]
[364818299,1749253832066,-1200.0,0.00024965,2]
[364818300,1749253832077,-23900.0,0.00024966,2]
[364818301,1749253832086,-150.0,0.00025,2]
[364818302,1749253832096,-960.93,0.00025037,2]
[364818303,1749253832105,-160.98,0.00025052,2]
[364818304,1749253832115,-150.0,0.0002508,2]
[364818305,1749253832125,-150.0,0.0002514,2]
[364818306,1749253832135,-150.0,0.00025194,2]
[364818307,1749253832144,-1544.67,0.00025202,2]
[364818308,1749253832154,-150.0,0.00025215,2]
[364818309,1749253832164,-49517.71651941,0.00025244,2]
[364818310,1749253832193,-21365.20541391,0.00025244,2]
[364818311,1749253832213,-54388.99806668,0.00025244,2]
[364818312,1749253832223,-150.0,0.00025268,2]
[364818313,1749253832232,-164.28,0.00025275,2]
[364818314,1749253832242,-1000.0,0.00025281,2]
[364818315,1749253832251,-1000.0,0.00025287,2]
[364818316,1749253832261,-500.0,0.000253,2]
[364818317,1749253832271,-159.82884273,0.000253,2]
[364818318,1749253832281,-161.37103672,0.000253,2]
[364818319,1749253832290,-187.49922482,0.000253,2]
[364818321,1749253832300,-500.0,0.000253,2]
[364818323,1749253832309,-500.0,0.000253,2]
[364818325,1749253832319,-167.00366002,0.000253,2]
[364818327,1749253832329,-500.82830807,0.000253,2]
[364818329,1749253832338,-159.80637064,0.000253,2]
[364818331,1749253832348,-150.0,0.00025307,2]
[364818332,1749253832357,-1000.0,0.00025393,2]
[364818334,1749253832367,-1000.0,0.00025407,2]
[364818336,1749253832376,-150.0,0.00025437,7]
[364818338,1749253832386,-150.0,0.0002547,2]
[364818340,1749253832396,-245.66,0.00025473,2]
[364818342,1749253832405,-150.0,0.00025502,2]
[364818344,1749253832415,-150.0,0.00025518,2]
[364818346,1749253832425,-150.0,0.00025529,2]
[364818348,1749253832434,-150.0,0.00025538,2]
[364818350,1749253832443,-150.0,0.00025591,2]
[364818352,1749253832452,-150.0,0.00025591,2]
[364818354,1749253832462,-206.25,0.00025616,2]
[364818357,1749253832471,-500.0,0.00025624,2]
[364818360,1749253832480,-1000.0,0.0002564,2]
[364818363,1749253832489,-206.0,0.00025666,2]
[364818366,1749253832499,-150.0,0.00025676,2]
[364818369,1749253832508,-152.0,0.00025679,4]
[364818372,1749253832518,-500.0,0.00025713,2]
[364818375,1749253832527,-150.0,0.00025731,2]
[364818378,1749253832537,-150.0,0.00025733,2]
[364818381,1749253832546,-800.0,0.00025745,2]
[364818384,1749253832556,-500.0,0.0002575,2]
[364818387,1749253832565,-159.73264074,0.0002575,2]
[364818389,1749253832576,-437.45115409,0.0002575,2]
[364818392,1749253832585,-150.0,0.0002578,2]
[364818395,1749253832593,-199.71,0.00025785,2]
[364818398,1749253832602,-2612.76,0.00025785,2]
[364818401,1749253832611,-302.43,0.00025786,2]
[364818404,1749253832620,-150.99,0.00025786,2]
[364818407,1749253832630,-997.94343935,0.00025786,2]
[364818460,1749253833071,-481.32656065,0.00025786,2]
[364818462,1749253833081,-150.99,0.00025786,2]
[364818464,1749253833091,-489.24,0.00025786,2]
[364818466,1749253833101,-185.87,0.00025821,2]
[364818468,1749253833110,-150.0,0.00025832,2]
[364818470,1749253833120,-459.07470552,0.000259,14]
[364818472,1749253833129,-199.58,0.00025903,2]
[364818474,1749253833139,-150.0,0.00025928,2]
[364818476,1749253833148,-150.0,0.00025979,2]
[364818477,1749253833158,-150.0,0.00026068,2]
[364818478,1749253833169,-26.52303383,0.00026095,2]
[364818609,1749253837328,58108.2777058,0.000356,120]
[364818613,1749253837745,-173.47696617,0.00026095,2]
[364818614,1749253837755,-150.0,0.00026105,2]
[364818615,1749253837764,-150.0,0.00026105,2]
[364818616,1749253838046,-150.0,0.00026105,2]
[364818617,1749253838056,-500.0,0.00026105,2]
[364818618,1749253838065,-1082.0,0.00026105,2]
[364818619,1749253838075,-500.0,0.00026105,2]
[364818620,1749253838084,-150.0,0.00026105,2]
[364818621,1749253838093,-500.0,0.00026105,2]
[364818622,1749253838102,-1000.0,0.00026124,2]
[364818624,1749253838111,-1018.41,0.00026131,2]
[364818625,1749253838120,-150.0,0.00026132,2]
[364818627,1749253838129,-500.0,0.00026132,2]
[364818629,1749253838138,-1082.0,0.00026132,2]
[364818631,1749253838148,-500.0,0.00026132,2]
[364818633,1749253838157,-500.0,0.00026132,2]
[364818635,1749253838166,-1000.0,0.00026154,2]
[364818636,1749253838175,-2386.51,0.00026155,2]
[364818638,1749253838184,-500.0,0.00026155,2]
[364818640,1749253838193,-500.0,0.00026155,2]
[364818642,1749253838202,-1670.0,0.00026155,2]
[364818644,1749253838212,-150.0,0.00026155,2]
[364818646,1749253838221,-500.0,0.00026155,2]
[364818647,1749253838231,-150.0,0.00026155,2]
[364818649,1749253838240,-150.0,0.00026155,2]
[364818651,1749253838250,-150.0,0.00026155,2]
[364818653,1749253838259,-150.0,0.00026156,2]
[364818655,1749253838269,-150.0,0.0002616,2]
[364818657,1749253838278,-500.0,0.0002616,2]
[364818658,1749253838287,-1082.0,0.0002616,2]
[364818660,1749253838297,-500.0,0.0002616,2]
[364818662,1749253838307,-500.0,0.0002616,2]
[364818664,1749253838316,-500.0,0.00026182,2]
[364818666,1749253838326,-500.0,0.00026182,2]
[364818667,1749253838334,-1670.0,0.00026182,2]
[364818669,1749253838344,-150.0,0.00026182,2]
[364818671,1749253838353,-500.0,0.00026182,2]
[364818673,1749253838362,-150.0,0.00026182,2]
[364818675,1749253838372,-150.0,0.00026182,2]
[364818677,1749253838381,-150.0,0.00026187,2]
[364818679,1749253838390,-500.0,0.00026187,2]
[364818681,1749253838400,-1082.0,0.00026187,2]
[364818683,1749253838409,-500.0,0.00026187,2]
[364818685,1749253838419,-500.0,0.00026187,2]
[364818686,1749253838429,-500.0,0.0002621,2]
[364818688,1749253838439,-500.0,0.0002621,2]
[364818690,1749253838452,-1670.0,0.0002621,2]
[364818692,1749253838461,-150.0,0.0002621,2]
[364818694,1749253838471,-500.0,0.0002621,2]
[364818696,1749253838481,-150.0,0.0002621,2]
[364818698,1749253838490,-250.0,0.00026215,2]
[364818700,1749253838499,-500.0,0.00026215,2]
[364818702,1749253838509,-1082.0,0.00026215,2]
[364818704,1749253838519,-150.0,0.00026215,2]
[364818706,1749253838528,-500.0,0.00026215,2]
[364818707,1749253838537,-500.0,0.00026237,2]
[364818709,1749253838547,-152.85040679,0.00026237,2]
[364818711,1749253838557,-1670.0,0.00026237,2]
[364818713,1749253838566,-200.0,0.00026237,2]
[364818715,1749253838575,-500.0,0.00026237,2]
[364818717,1749253838585,-150.0,0.00026237,2]
[364818719,1749253838594,-500.0,0.00026242,2]
[364818721,1749253838603,-1082.0,0.00026242,2]
[364818723,1749253838612,-500.0,0.00026242,2]
[364818725,1749253838621,-500.0,0.00026265,2]
[364818727,1749253838631,-1670.0,0.00026265,2]
[364818728,1749253838640,-500.0,0.00026265,2]
[364818730,1749253838650,-150.0,0.00026265,2]
[364818732,1749253838659,-500.0,0.00026269,2]
[364818734,1749253838668,-1082.0,0.00026269,2]
[364818736,1749253838677,-500.0,0.00026269,2]
[364818738,1749253838686,-500.0,0.00026292,2]
[364818740,1749253838695,-1670.0,0.00026292,2]
[364818742,1749253838704,-500.0,0.00026292,2]
[364818743,1749253838713,-176.51934188,0.00026292,2]
[364818745,1749253838722,-500.0,0.00026297,2]
[364818747,1749253838732,-1082.0,0.00026297,2]
[364818749,1749253838742,-500.0,0.00026297,2]
[364818751,1749253838751,-459.07470534,0.00026314,14]
[364818753,1749253838760,-500.0,0.00026319,2]
[364818755,1749253838770,-1670.0,0.00026319,2]
[364818757,1749253838779,-500.0,0.00026319,2]
[364818759,1749253838788,-1000.0,0.00026322,2]
[364818761,1749253838797,-449.70883138,0.00026324,2]
[364818763,1749253838806,-1082.0,0.00026324,2]
[364818764,1749253838816,-500.0,0.00026324,2]
[364818766,1749253838825,-2923.83,0.00026332,2]
[364818768,1749253838834,-500.0,0.00026347,2]
[364818770,1749253838843,-1670.0,0.00026347,2]
[364818772,1749253838853,-500.0,0.00026347,2]
[364818774,1749253838862,-1082.0,0.00026352,2]
[364818776,1749253838871,-500.0,0.00026352,2]
[364818778,1749253838880,-619.80696099,0.00026374,2]
[364818779,1749253838890,-1670.0,0.00026374,2]
[364818781,1749253838899,-500.0,0.00026374,2]
[364818783,1749253838912,-1082.0,0.00026379,2]
[364818785,1749253838923,-500.0,0.00026379,2]
[364818787,1749253838932,-1670.0,0.00026402,2]
[364818789,1749253838942,-276.74963658,0.00026402,2]
[364818791,1749253838955,-1082.0,0.00026406,2]
[364818793,1749253838964,-500.0,0.00026406,2]
[364818795,1749253838974,-245.66,0.00026428,2]
[364818797,1749253838985,-1670.0,0.00026429,2]
[364818799,1749253838997,-1082.0,0.00026434,2]
[364818801,1749253839006,-500.0,0.00026434,2]
[364818803,1749253839015,-1670.0,0.00026456,2]
[364818804,1749253839025,-1082.0,0.00026461,2]
[364818806,1749253839034,-219.03710801,0.00026461,2]
[364818808,1749253839043,-150.0,0.00026466,2]
[364818810,1749253839052,-1670.0,0.00026484,2]
[364818812,1749253839062,-1082.0,0.00026489,2]
[364818814,1749253839071,-1670.0,0.00026511,2]
[364818816,1749253839081,-1082.0,0.00026516,2]
[364818818,1749253839090,-150.0,0.0002652,2]
[364818819,1749253839099,-1670.0,0.00026539,2]
[364818821,1749253839109,-1082.0,0.00026543,2]
[364818823,1749253839118,-1670.0,0.00026566,2]
[364818825,1749253839127,-1082.0,0.00026571,2]
[364818827,1749253839137,-150.0,0.00026581,2]
[364818829,1749253839146,-2500.0,0.00026589,2]
[364818830,1749253839155,-1670.0,0.00026593,2]
[364818831,1749253839164,-1082.0,0.00026598,2]
[364818832,1749253839174,-1670.0,0.00026621,2]
[364818833,1749253839183,-1082.0,0.00026626,2]
[364818834,1749253839192,-200.0,0.00026631,2]
[364818835,1749253839202,-1670.0,0.00026648,2]
[364818836,1749253839211,-1082.0,0.00026653,2]
[364818837,1749253839221,-164.28,0.00026666,2]
[364818838,1749253839230,-1670.0,0.00026676,2]
[364818839,1749253839239,-240.23,0.00026676,2]
[364818840,1749253839248,-1082.0,0.0002668,2]
[364818841,1749253839257,-150.0,0.00026685,2]
[364818842,1749253839266,-300.0,0.000267,9]
[364818843,1749253839275,-1670.0,0.00026703,2]
[364818844,1749253839284,-1082.0,0.00026708,2]
[364818845,1749253839293,-150.0,0.00026708,2]
[364818846,1749253839302,-150.0,0.00026718,2]
[364818847,1749253839311,-382.554772,0.00026722,6]
[364818848,1749253839320,-459.07470534,0.00026728,15]
[364818849,1749253839329,-1670.0,0.0002673,2]
[364818850,1749253839338,-1097.07549654,0.00026735,2]
[364818851,1749253839348,-1670.0,0.00026758,2]
[364818852,1749253839357,-153.42314445,0.00026774,2]
[364818853,1749253839367,-1692.32218555,0.00026785,2]
[364818854,1749253839376,-150.0,0.00026789,2]
[364818855,1749253839386,-2000.0,0.000268,2]
[364818856,1749253839396,-700.0,0.000268,9]
[364818857,1749253839406,-30000.0,0.00026812,2]
[364818858,1749253839415,-200.0,0.00026827,2]
[364818859,1749253839425,-151.0,0.00026833,2]
[364818860,1749253839435,-1000.0,0.00026833,2]
[364818861,1749253839445,-623.82080352,0.00026833,2]
[364818862,1749253839454,-151.0,0.00026833,2]
[364818863,1749253839464,-500.0,0.00026833,2]
[364818864,1749253839473,-186.32160522,0.00026833,2]
[364818865,1749253839483,-500.0,0.00026833,2]
[364818866,1749253839493,-283.33,0.00026833,2]
[364818867,1749253839503,-300.0,0.00026833,2]
[364818868,1749253839512,-207.4,0.00026833,2]
[364818869,1749253839521,-150.0,0.00026845,2]
[364818870,1749253839530,-150.0,0.00026858,2]
[364818871,1749253839540,-500.0,0.00026883,2]
[364818872,1749253839550,-150.0,0.00026883,2]
[364818873,1749253839559,-155.32431393,0.00026883,2]
[364818874,1749253839569,-500.0,0.00026883,2]
[364818875,1749253839578,-150.0,0.00026883,2]
[364818876,1749253839587,-150.0,0.00026883,2]
[364818877,1749253839597,-1047.61671974,0.00026893,2]
[364818878,1749253839606,-1000.0,0.000269,9]
[364818879,1749253839615,-500.0,0.0002691,2]
[364818880,1749253839625,-150.0,0.0002691,2]
[364818881,1749253839634,-500.0,0.0002691,2]
[364818882,1749253839643,-150.0,0.0002691,2]
[364818883,1749253839653,-150.0,0.0002691,2]
[364818884,1749253839662,-954.1063,0.0002692,2]
[364818885,1749253839671,-500.0,0.00026938,2]
[364818886,1749253839681,-200.6854111,0.00026938,2]
[364818887,1749253839690,-500.0,0.00026938,2]
[364818888,1749253839699,-150.0,0.00026938,2]
[364818889,1749253839709,-150.0,0.00026938,2]
[364818890,1749253839718,-500.0,0.00026965,2]
[364818891,1749253839727,-395.74451207,0.00026965,2]
[364818892,1749253839737,-150.0,0.00026965,2]
[364818893,1749253839747,-150.0,0.00026965,2]
[364818894,1749253839756,-354.26,0.0002697,2]
[364818895,1749253839765,-150.78,0.0002697,2]
[364818896,1749253839775,-170.57,0.0002697,2]
[364818897,1749253839784,-170.57,0.0002697,2]
[364818898,1749253839794,-12346.8408706,0.0002699,2]
[364818899,1749253839803,-407.82896973,0.00026993,2]
[364818900,1749253839812,-153.7544645,0.00026993,2]
[364818901,1749253839822,-150.0,0.00026993,2]
[364818902,1749253839831,-326.0,0.00027,7]
[364818903,1749253839840,-200.0,0.00027,2]
[364818904,1749253839851,-61734.2043531,0.0002701,2]
[364818905,1749253839860,-1047.61671965,0.00027011,2]
[364818906,1749253839870,-169.45071894,0.0002702,2]
[364818907,1749253839879,-137978.2924878,0.0002702,2]
[364818908,1749253839888,-500.0,0.0002702,2]
[364818909,1749253839897,-500.0,0.0002702,2]
[364818910,1749253839910,-500.0,0.0002702,2]
[364818911,1749253839920,-150.0,0.0002702,2]
[364818912,1749253839930,-500.0,0.0002702,2]
[364818913,1749253839940,-500.0,0.0002702,2]
[364818914,1749253839950,-500.0,0.0002702,2]
[364818915,1749253839959,-150.0,0.0002702,2]
[364818916,1749253839969,-500.0,0.0002702,2]
[364818917,1749253839979,-150.0,0.0002702,2]
[364818918,1749253839989,-12346.8408706,0.00027037,2]
[364818919,1749253840000,-500.0,0.00027047,2]
[364818920,1749253840009,-500.0,0.00027047,2]
[364818921,1749253840019,-500.0,0.00027047,2]
[364818922,1749253840028,-254.70642229,0.00027047,2]
[364818923,1749253840037,-500.0,0.00027047,2]
[364818924,1749253840046,-500.0,0.00027047,2]
[364818925,1749253840055,-500.0,0.00027047,2]
[364818926,1749253840064,-200.82433775,0.00027047,2]
[364818927,1749253840074,-500.0,0.00027047,2]
[364818928,1749253840082,-150.0,0.00027047,2]
[364818929,1749253840091,-150.0,0.00027069,2]
[364818930,1749253840101,-500.0,0.00027075,2]
[364818931,1749253840110,-500.0,0.00027075,2]
[364818932,1749253840119,-486.07300312,0.00027075,2]
[364818933,1749253840128,-500.0,0.00027075,2]
[364818934,1749253840137,-500.0,0.00027075,2]
[364818935,1749253840146,-500.0,0.00027075,2]
[364818936,1749253840156,-158.57695402,0.00027075,2]
[364818937,1749253840165,-150.0,0.00027075,2]
[364818938,1749253840175,-163.22,0.00027093,2]
[364818939,1749253840184,-163.22,0.00027093,2]
[364818940,1749253840193,-326.44,0.00027093,2]
[364818941,1749253840202,-326.44,0.00027093,2]
[364818942,1749253840212,-163.22,0.00027093,2]
[364818943,1749253840222,-163.22,0.00027093,2]
[364818944,1749253840231,-163.22,0.00027093,2]
[364818945,1749253840241,-163.22,0.00027093,2]
[364818946,1749253840250,-150.0,0.00027097,2]
[364818947,1749253840259,-500.0,0.00027102,2]
[364818948,1749253840268,-461.51976516,0.00027102,2]
[364818949,1749253840278,-500.0,0.00027102,2]